fUSD/lending_fUSD_20250105
["ID","MTS","AMOUNT","RATE_DAILY","PERIOD"]
[347709125,1736076638165,-500.0,8.219e-05,2]
[347709126,1736076638175,-517.23,8.219e-05,2]
[347709127,1736076638184,-812.18,8.219e-05,2]
[347709128,1736076638194,-500.0,8.219e-05,2]
[347709129,1736076638203,-500.0,8.219e-05,2]
[347709130,1736076638212,-508.09,8.219e-05,2]
[347709131,1736076638221,-500.0,8.219e-05,2]
[347709132,1736076638230,-500.0,8.219e-05,2]
[347709133,1736076638239,-500.0,8.219e-05,2]
[347709134,1736076638249,-1722.13,8.219e-05,2]
[347709135,1736076638259,-500.0,8.219e-05,2]
[347709136,1736076638269,-500.0,8.219e-05,2]
[347709137,1736076638278,-500.0,8.219e-05,2]
[347709138,1736076638288,-2435.43,8.219e-05,2]
[347709139,1736076638298,-1479.15,8.219e-05,2]
[347709140,1736076638308,-500.0,8.219e-05,2]
[347709141,1736076638317,-510.19349544,8.219e-05,2]
[347709142,1736076638326,-500.0,8.219e-05,2]
[347709143,1736076638335,-2629.55,8.219e-05,2]
[347709144,1736076638346,-775.39,8.219e-05,2]
[347709145,1736076638355,-500.0,8.219e-05,2]
[347709147,1736076638365,-500.0,8.219e-05,2]
[347709148,1736076638375,-500.0,8.219e-05,2]
[347709150,1736076638384,-1084.85,8.219e-05,2]
[347709152,1736076638394,-500.0,8.219e-05,2]
[347709154,1736076638403,-1479.96,8.219e-05,2]
[347709156,1736076638412,-5610.7,8.219e-05,2]
[347709158,1736076638422,-642.1,8.219e-05,2]
[347709160,1736076638431,-857.12,8.219e-05,2]
[347709162,1736076638440,-4352.51,8.219e-05,2]
[347709163,1736076638450,-753.42,8.219e-05,2]
[347709164,1736076638459,-4189.49,8.219e-05,2]
[347709165,1736076638469,-500.0,8.219e-05,2]
[347709166,1736076638478,-500.0,8.219e-05,2]
[347709167,1736076638487,-500.0,8.219e-05,2]
[347709168,1736076638497,-1274.97,8.219e-05,2]
[347709169,1736076638512,-573.56,8.219e-05,2]
[347709170,1736076638521,-500.0,8.219e-05,2]
[347709171,1736076638531,-500.0,8.219e-05,2]
[347709172,1736076638540,-500.0,8.219e-05,2]
[347709173,1736076638551,-500.0,8.219e-05,2]
[347709174,1736076638621,-1788.55,8.219e-05,2]
[347709175,1736076638630,-631.66,8.219e-05,2]
[347709176,1736076638640,-904.09,8.219e-05,2]
[347709177,1736076638650,-1715.62,8.219e-05,2]
[347709178,1736076638659,-500.0,8.219e-05,2]
[347709179,1736076638668,-1090.03,8.219e-05,2]
[347709180,1736076638677,-1296.99,8.219e-05,2]
[347709181,1736076638686,-1668.23,8.219e-05,2]
[347709182,1736076638695,-1245.54,8.219e-05,2]
[347709183,1736076638704,-500.0,8.219e-05,2]
[347709184,1736076638713,-500.0,8.219e-05,2]
[347709185,1736076638722,-1017.28,8.219e-05,2]
[347709186,1736076638731,-500.0,8.219e-05,2]
[347709187,1736076638740,-5127.87,8.219e-05,2]
[347709188,1736076638750,-500.0,8.219e-05,2]
[347709189,1736076638759,-1218.51,8.219e-05,2]
[347709190,1736076638769,-1372.97,8.219e-05,2]
[347709191,1736076638778,-500.0,8.219e-05,2]
[347709192,1736076638787,-500.0,8.219e-05,2]
[347709193,1736076638797,-560.67,8.219e-05,2]
[347709194,1736076638807,-500.0,8.219e-05,2]
[347709195,1736076638816,-500.0,8.219e-05,2]
[347709196,1736076638825,-1408.39,8.219e-05,2]
[347709197,1736076638835,-1419.68,8.219e-05,2]
[347709198,1736076638844,-500.0,8.219e-05,2]
[347709199,1736076638853,-500.0,8.219e-05,2]
[347709200,1736076638862,-1751.39,8.219e-05,2]
[347709201,1736076638871,-500.0,8.219e-05,2]
[347709202,1736076638881,-500.0,8.219e-05,2]
[347709203,1736076638890,-500.0,8.219e-05,2]
[347709204,1736076638898,-500.0,8.219e-05,2]
[347709205,1736076638907,-500.0,8.219e-05,2]
[347709206,1736076638917,-500.0,8.219e-05,2]
[347709207,1736076638926,-644.11,8.219e-05,2]
[347709208,1736076638935,-500.0,8.219e-05,2]
[347709209,1736076638945,-500.0,8.219e-05,2]
[347709210,1736076638954,-500.0,8.219e-05,2]
[347709211,1736076638963,-500.0,8.219e-05,2]
[347709212,1736076638972,-500.0,8.219e-05,2]
[347709213,1736076638981,-500.0,8.219e-05,2]
[347709214,1736076638990,-16743.84,8.219e-05,2]
[347709215,1736076638999,-557.05,8.219e-05,2]
[347709216,1736076639008,-500.0,8.219e-05,2]
[347709217,1736076639018,-500.0,8.219e-05,2]
[347709218,1736076639027,-998.13,8.219e-05,2]
[347709219,1736076639036,-500.0,8.219e-05,2]
[347709220,1736076639045,-674.63,8.219e-05,2]
[347709221,1736076639054,-1623.52,8.219e-05,2]
[347709222,1736076639064,-500.0,8.219e-05,2]
[347709223,1736076639073,-1744.57,8.219e-05,2]
[347709224,1736076639082,-556.84881933,8.219e-05,2]
[347709225,1736076639091,-500.0,8.219e-05,2]
[347709226,1736076639100,-500.0,8.219e-05,2]
[347709227,1736076639109,-500.0,8.219e-05,2]
[347709228,1736076639118,-500.0,8.219e-05,2]
[347709229,1736076639127,-1111.28,8.219e-05,2]
[347709230,1736076639137,-3530.55,8.219e-05,2]
[347709231,1736076639146,-500.0,8.219e-05,2]
[347709232,1736076639155,-750.33,8.219e-05,2]
[347709233,1736076639164,-6549.87,8.219e-05,2]
[347709234,1736076639173,-2059.92,8.219e-05,2]
[347709235,1736076639182,-1216.86,8.219e-05,2]
[347709236,1736076639191,-500.0,8.219e-05,2]
[347709237,1736076639200,-500.0,8.219e-05,2]
[347709238,1736076639209,-1861.52,8.219e-05,2]
[347709239,1736076639218,-500.0,8.219e-05,2]
[347709240,1736076639227,-547.16,8.219e-05,2]
[347709241,1736076639237,-500.0,8.219e-05,2]
[347709242,1736076639246,-747.43,8.219e-05,2]
[347709243,1736076639255,-500.0,8.219e-05,2]
[347709244,1736076639263,-1221.81,8.219e-05,2]
[347709245,1736076639273,-1317.31,8.219e-05,2]
[347709246,1736076639282,-500.0,8.219e-05,2]
[347709247,1736076639291,-500.0,8.219e-05,2]
[347709248,1736076639299,-5390.16,8.219e-05,2]
[347709249,1736076639309,-1009.21,8.219e-05,2]
[347709250,1736076639318,-2881.15,8.219e-05,2]
[347709251,1736076639327,-928.39,8.219e-05,2]
[347709252,1736076639336,-500.0,8.219e-05,2]
[347709253,1736076639345,-701.81,8.219e-05,2]
[347709254,1736076639354,-2069.18,8.219e-05,2]
[347709255,1736076639363,-500.0,8.219e-05,2]
[347709256,1736076639372,-2248.1,8.219e-05,2]
[347709257,1736076639381,-500.0,8.219e-05,2]
[347709258,1736076639390,-1539.39,8.219e-05,2]
[347709259,1736076639399,-673.51,8.219e-05,2]
[347709260,1736076639409,-7370.29,8.219e-05,2]
[347709261,1736076639418,-1280.12,8.219e-05,2]
[347709262,1736076639427,-10893.72,8.219e-05,2]
[347709263,1736076639437,-1036.28,8.219e-05,2]
[347709264,1736076639447,-1373.2,8.219e-05,2]
[347709265,1736076639456,-4622.84,8.219e-05,2]
[347709266,1736076639466,-3815.44,8.219e-05,2]
[347709267,1736076639475,-500.0,8.219e-05,2]
[347709268,1736076639484,-1642.33,8.219e-05,2]
[347709269,1736076639493,-4597.68,8.219e-05,2]
[347709270,1736076639505,-500.0,8.219e-05,2]
[347709271,1736076639514,-1339.88,8.219e-05,2]
[347709272,1736076639523,-4184.98,8.219e-05,2]
[347709273,1736076639532,-1151.92,8.219e-05,2]
[347709274,1736076639541,-500.0,8.219e-05,2]
[347709275,1736076639550,-500.0,8.219e-05,2]
[347709276,1736076639560,-500.0,8.219e-05,2]
[347709277,1736076639569,-500.0,8.219e-05,2]
[347709278,1736076639578,-1607.87,8.219e-05,2]
[347709279,1736076639588,-500.0,8.219e-05,2]
[347709280,1736076639598,-5298.15,8.219e-05,2]
[347709281,1736076639607,-10588.71,8.219e-05,2]
[347709282,1736076639616,-672.89,8.219e-05,2]
[347709283,1736076639625,-500.0,8.219e-05,2]
[347709284,1736076639634,-1591.21,8.219e-05,2]
[347709285,1736076639643,-5237.54,8.219e-05,2]
[347709286,1736076639652,-500.0,8.219e-05,2]
[347709287,1736076639661,-2596.58,8.219e-05,2]
[347709288,1736076639671,-2075.87,8.219e-05,2]
[347709289,1736076639680,-1342.26,8.219e-05,2]
[347709290,1736076639689,-500.0,8.219e-05,2]
[347709291,1736076639698,-500.0,8.219e-05,2]
[347709293,1736076639707,-500.0,8.219e-05,2]
[347709294,1736076639716,-1224.92,8.219e-05,2]
[347709295,1736076639725,-4563.51,8.219e-05,2]
[347709296,1736076639734,-2583.58,8.219e-05,2]
[347709297,1736076639743,-500.0,8.219e-05,2]
[347709299,1736076639753,-500.0,8.219e-05,2]
[347709300,1736076639762,-500.0,8.219e-05,2]
[347709301,1736076639770,-500.0,8.219e-05,2]
[347709302,1736076639779,-500.0,8.219e-05,2]
[347709303,1736076639788,-500.0,8.219e-05,2]
[347709304,1736076639797,-657.55,8.219e-05,2]
[347709305,1736076639806,-682.38,8.219e-05,2]
[347709306,1736076639815,-500.0,8.219e-05,2]
[347709307,1736076639824,-500.0,8.219e-05,2]
[347709308,1736076639833,-942.05,8.219e-05,2]
[347709310,1736076639842,-729.18,8.219e-05,2]
[347709311,1736076639851,-500.0,8.219e-05,2]
[347709312,1736076639861,-500.0,8.219e-05,2]
[347709313,1736076639870,-1711.65,8.219e-05,2]
[347709314,1736076639878,-1304.69,8.219e-05,2]
[347709315,1736076639887,-500.0,8.219e-05,2]
[347709316,1736076639896,-500.0,8.219e-05,2]
[347709317,1736076639905,-682.24,8.219e-05,2]
[347709318,1736076639914,-1616.99,8.219e-05,2]
[347709319,1736076639923,-1574.88,8.219e-05,2]
[347709320,1736076639932,-500.0,8.219e-05,2]
[347709321,1736076639941,-212.65955623,8.219e-05,2]
[347709322,1736076639950,-500.0,8.219e-05,2]
[347709323,1736076639959,-500.0,8.219e-05,2]
[347709324,1736076639968,-615.67,8.219e-05,2]
[347709325,1736076639977,-1293.53,8.219e-05,2]
[347709326,1736076639986,-500.0,8.219e-05,2]
[347709327,1736076639995,-1291.98,8.219e-05,2]
[347709328,1736076640004,-500.0,8.219e-05,2]
[347709329,1736076640013,-500.0,8.219e-05,2]
[347709330,1736076640022,-655.53,8.219e-05,2]
[347709331,1736076640031,-500.0,8.219e-05,2]
[347709332,1736076640040,-733.39,8.219e-05,2]
[347709333,1736076640049,-450.31055891,8.219e-05,2]
[347709334,1736076640058,-1405.49,8.219e-05,2]
[347709335,1736076640068,-500.0,8.219e-05,2]
[347709336,1736076640077,-891.55,8.219e-05,2]
[347709337,1736076640086,-8412.37,8.219e-05,2]
[347709338,1736076640094,-1715.77,8.219e-05,2]
[347709339,1736076640104,-250.0,8.219e-05,2]
[347709340,1736076640113,-163.4,8.219e-05,2]
[347709341,1736076640121,-1000.0,8.219e-05,2]
[347709342,1736076640131,-150.0,8.22e-05,2]
[347709343,1736076640142,-182.86,8.22e-05,2]
[347709344,1736076640152,-436.94,8.22e-05,2]
[347709345,1736076640161,-182.86,8.22e-05,2]
[347709346,1736076640170,-436.94,8.22e-05,2]
[347709347,1736076640179,-150.0,8.255e-05,2]
[347709348,1736076640188,-150.0,8.344e-05,2]
[347709349,1736076640197,-150.0,8.4e-05,2]
[347709350,1736076640207,-182.86,8.4e-05,2]
[347709351,1736076640216,-436.94,8.4e-05,2]
[347709352,1736076640225,-150.0,8.433e-05,2]
[347709353,1736076640235,-570.52,8.466e-05,2]
[347709354,1736076640243,-867.38,8.466e-05,2]
[347709355,1736076640252,-436.61,8.466e-05,2]
[347709356,1736076640262,-500.0,8.492e-05,2]
[347709357,1736076640272,-1291.67,8.492e-05,2]
[347709358,1736076640281,-500.0,8.492e-05,2]
[347709359,1736076640291,-1151.02,8.492e-05,2]
[347709360,1736076640301,-579.28,8.492e-05,2]
[347709361,1736076640310,-2851.63,8.492e-05,2]
[347709362,1736076640319,-1736.69,8.492e-05,2]
[347709363,1736076640329,-1583.4,8.492e-05,2]
[347709364,1736076640338,-1690.43,8.493e-05,2]
[347709365,1736076640348,-500.0,8.493e-05,2]
[347709366,1736076640358,-500.0,8.493e-05,2]
[347709367,1736076640367,-780.97,8.493e-05,2]
[347709368,1736076640377,-281.49865655,8.493e-05,2]
[347709369,1736076640388,-500.0,8.493e-05,2]
[347709370,1736076640398,-500.0,8.493e-05,2]
[347709371,1736076640408,-500.0,8.493e-05,2]
[347709372,1736076640417,-500.0,8.493e-05,2]
[347709373,1736076640426,-724.24,8.493e-05,2]
[347709374,1736076640435,-637.65,8.493e-05,2]
[347709375,1736076640444,-500.0,8.493e-05,2]
[347709376,1736076640454,-509.7,8.493e-05,2]
[347709377,1736076640464,-500.0,8.493e-05,2]
[347709378,1736076640474,-500.0,8.493e-05,2]
[347709379,1736076640483,-500.0,8.493e-05,2]
[347709380,1736076640493,-500.0,8.493e-05,2]
[347709381,1736076640506,-500.0,8.493e-05,2]
[347709382,1736076640516,-500.0,8.493e-05,2]
[347709383,1736076640525,-501.92563042,8.493e-05,2]
[347709384,1736076640535,-500.0,8.493e-05,2]
[347709385,1736076640545,-738.62,8.493e-05,2]
[347709386,1736076640555,-500.0,8.493e-05,2]
[347709387,1736076640564,-500.0,8.493e-05,2]
[347709388,1736076640575,-500.0,8.493e-05,2]
[347709389,1736076640584,-500.0,8.493e-05,2]
[347709390,1736076640594,-566.25,8.493e-05,2]
[347709391,1736076640603,-500.0,8.493e-05,2]
[347709392,1736076640612,-500.0,8.493e-05,2]
[347709393,1736076640622,-500.0,8.493e-05,2]
[347709394,1736076640631,-500.0,8.493e-05,2]
[347709395,1736076640642,-500.0,8.493e-05,2]
[347709397,1736076640651,-500.0,8.493e-05,2]
[347709398,1736076640661,-500.0,8.493e-05,2]
[347709399,1736076640670,-500.0,8.493e-05,2]
[347709400,1736076640679,-730.26,8.493e-05,2]
[347709401,1736076640688,-500.0,8.493e-05,2]
[347709402,1736076640697,-500.0,8.493e-05,2]
[347709403,1736076640707,-500.0,8.493e-05,2]
[347709404,1736076640716,-500.0,8.493e-05,2]
[347709405,1736076640725,-618.54,8.493e-05,2]
[347709406,1736076640735,-500.0,8.493e-05,2]
[347709407,1736076640744,-500.0,8.493e-05,2]
[347709408,1736076640753,-500.0,8.493e-05,2]
[347709409,1736076640763,-500.0,8.493e-05,2]
[347709410,1736076640772,-500.0,8.493e-05,2]
[347709411,1736076640781,-500.0,8.493e-05,2]
[347709412,1736076640790,-526.81,8.493e-05,2]
[347709413,1736076640799,-331.35135766,8.493e-05,2]
[347709414,1736076640808,-500.0,8.493e-05,2]
[347709415,1736076640817,-500.0,8.493e-05,2]
[347709416,1736076640826,-500.0,8.493e-05,2]
[347709417,1736076640835,-788.22,8.493e-05,2]
[347709418,1736076640844,-500.0,8.493e-05,2]
[347709419,1736076640854,-500.0,8.493e-05,2]
[347709420,1736076640863,-500.0,8.493e-05,2]
[347709421,1736076640872,-500.0,8.493e-05,2]
[347709422,1736076640882,-500.0,8.493e-05,2]
[347709423,1736076640892,-500.0,8.493e-05,2]
[347709424,1736076640902,-1000.0,8.493e-05,2]
[347709425,1736076640911,-500.0,8.493e-05,2]
[347709426,1736076640920,-500.0,8.493e-05,2]
[347709427,1736076640929,-500.0,8.493e-05,2]
[347709428,1736076640939,-500.0,8.493e-05,2]
[347709429,1736076640948,-500.0,8.493e-05,2]
[347709430,1736076640957,-500.0,8.493e-05,2]
[347709431,1736076640967,-957.51,8.493e-05,2]
[347709432,1736076640976,-500.0,8.493e-05,2]
[347709433,1736076640985,-500.0,8.493e-05,2]
[347709434,1736076640995,-500.0,8.493e-05,2]
[347709435,1736076641004,-500.0,8.493e-05,2]
[347709436,1736076641013,-500.0,8.493e-05,2]
[347709437,1736076641022,-500.0,8.493e-05,2]
[347709438,1736076641031,-500.0,8.493e-05,2]
[347709439,1736076641041,-500.0,8.493e-05,2]
[347709440,1736076641051,-500.0,8.493e-05,2]
[347709441,1736076641060,-500.0,8.493e-05,2]
[347709442,1736076641069,-500.0,8.493e-05,2]
[347709443,1736076641078,-500.0,8.493e-05,2]
[347709444,1736076641087,-500.0,8.493e-05,2]
[347709445,1736076641096,-500.0,8.493e-05,2]
[347709446,1736076641105,-529.16,8.493e-05,2]
[347709447,1736076641114,-681.29,8.493e-05,2]
[347709448,1736076641123,-500.0,8.493e-05,2]
[347709449,1736076641132,-513.1,8.493e-05,2]
[347709450,1736076641142,-577.45,8.493e-05,2]
[347709451,1736076641151,-500.0,8.493e-05,2]
[347709452,1736076641160,-500.0,8.493e-05,2]
[347709453,1736076641169,-500.0,8.493e-05,2]
[347709454,1736076641179,-500.0,8.493e-05,2]
[347709455,1736076641187,-500.0,8.493e-05,2]
[347709456,1736076641196,-500.0,8.493e-05,2]
[347709457,1736076641206,-500.0,8.493e-05,2]
[347709458,1736076641215,-502.99222877,8.493e-05,2]
[347709459,1736076641224,-500.0,8.493e-05,2]
[347709460,1736076641233,-500.0,8.493e-05,2]
[347709461,1736076641242,-500.0,8.493e-05,2]
[347709462,1736076641251,-500.0,8.493e-05,2]
[347709463,1736076641261,-500.0,8.493e-05,2]
[347709464,1736076641270,-500.0,8.493e-05,2]
[347709465,1736076641279,-500.0,8.493e-05,2]
[347709466,1736076641287,-500.0,8.493e-05,2]
[347709467,1736076641297,-500.0,8.493e-05,2]
[347709468,1736076641306,-500.0,8.493e-05,2]
[347709469,1736076641315,-500.0,8.493e-05,2]
[347709470,1736076641324,-1213.92,8.493e-05,2]
[347709471,1736076641333,-640.69,8.493e-05,2]
[347709472,1736076641342,-500.0,8.493e-05,2]
[347709473,1736076641351,-500.0,8.493e-05,2]
[347709474,1736076641360,-500.0,8.493e-05,2]
[347709475,1736076641369,-500.0,8.493e-05,2]
[347709476,1736076641378,-500.0,8.493e-05,2]
[347709477,1736076641388,-500.0,8.493e-05,2]
[347709478,1736076641397,-500.0,8.493e-05,2]
[347709479,1736076641406,-500.0,8.493e-05,2]
[347709480,1736076641415,-660.79,8.493e-05,2]
[347709481,1736076641425,-500.0,8.493e-05,2]
[347709482,1736076641434,-500.0,8.493e-05,2]
[347709483,1736076641443,-500.0,8.493e-05,2]
[347709484,1736076641452,-159.94,8.493e-05,2]
[347709485,1736076641464,-561.99,8.493e-05,2]
[347709486,1736076641472,-500.0,8.493e-05,2]
[347709487,1736076641482,-500.0,8.493e-05,2]
[347709488,1736076641491,-500.0,8.493e-05,2]
[347709489,1736076641502,-500.0,8.493e-05,2]
[347709490,1736076641511,-500.0,8.493e-05,2]
[347709491,1736076641520,-500.0,8.493e-05,2]
[347709492,1736076641530,-500.0,8.493e-05,2]
[347709493,1736076641539,-500.0,8.493e-05,2]
[347709494,1736076641548,-500.0,8.493e-05,2]
[347709495,1736076641557,-500.0,8.493e-05,2]
[347709496,1736076641566,-500.0,8.493e-05,2]
[347709497,1736076641575,-500.0,8.493e-05,2]
[347709498,1736076641585,-1326.19,8.493e-05,2]
[347709499,1736076641594,-500.0,8.493e-05,2]
[347709500,1736076641604,-500.0,8.493e-05,2]
[347709501,1736076641613,-500.0,8.493e-05,2]
[347709502,1736076641622,-500.0,8.493e-05,2]
[347709503,1736076641632,-500.0,8.493e-05,2]
[347709504,1736076641642,-500.0,8.493e-05,2]
[347709505,1736076641651,-500.0,8.493e-05,2]
[347709506,1736076641661,-500.0,8.493e-05,2]
[347709507,1736076641670,-500.0,8.493e-05,2]
[347709508,1736076641679,-816.38,8.493e-05,2]
[347709509,1736076641687,-500.0,8.493e-05,2]
[347709510,1736076641696,-640.6,8.493e-05,2]
[347709511,1736076641706,-500.0,8.493e-05,2]
[347709512,1736076641715,-500.0,8.493e-05,2]
[347709513,1736076641724,-500.0,8.493e-05,2]
[347709514,1736076641733,-500.0,8.493e-05,2]
[347709515,1736076641743,-500.0,8.493e-05,2]
[347709516,1736076641752,-1289.07,8.493e-05,2]
[347709517,1736076641761,-500.0,8.493e-05,2]
[347709518,1736076641771,-500.0,8.493e-05,2]
[347709519,1736076641780,-601.33,8.493e-05,2]
[347709520,1736076641790,-500.0,8.493e-05,2]
[347709521,1736076641799,-500.0,8.493e-05,2]
[347709522,1736076641809,-500.0,8.493e-05,2]
[347709523,1736076641819,-500.0,8.493e-05,2]
[347709524,1736076641827,-500.0,8.493e-05,2]
[347709525,1736076641837,-2326.77,8.493e-05,2]
[347709526,1736076641846,-500.0,8.493e-05,2]
[347709527,1736076641856,-788.81,8.493e-05,2]
[347709528,1736076641865,-500.0,8.493e-05,2]
[347709529,1736076641875,-500.0,8.493e-05,2]
[347709530,1736076641884,-500.0,8.493e-05,2]
[347709531,1736076641893,-1211.06,8.493e-05,2]
[347709532,1736076641902,-500.0,8.493e-05,2]
[347709533,1736076641912,-500.0,8.493e-05,2]
[347709534,1736076641921,-500.0,8.493e-05,2]
[347709535,1736076641931,-1278.06,8.493e-05,2]
[347709536,1736076641940,-500.0,8.493e-05,2]
[347709537,1736076641950,-694.83,8.493e-05,2]
[347709538,1736076641959,-1063.9,8.493e-05,2]
[347709539,1736076641969,-1368.3,8.493e-05,2]
[347709540,1736076641978,-500.0,8.493e-05,2]
[347709541,1736076641988,-2537.86,8.493e-05,2]
[347709542,1736076641998,-536.36,8.493e-05,2]
[347709543,1736076642007,-737.23,8.493e-05,2]
[347709544,1736076642016,-500.0,8.493e-05,2]
[347709545,1736076642025,-500.0,8.493e-05,2]
[347709546,1736076642035,-758.55,8.493e-05,2]
[347709547,1736076642044,-500.0,8.493e-05,2]
[347709548,1736076642054,-500.0,8.493e-05,2]
[347709549,1736076642063,-500.0,8.493e-05,2]
[347709550,1736076642072,-500.0,8.493e-05,2]
[347709551,1736076642083,-500.0,8.493e-05,2]
[347709552,1736076642092,-513.17,8.493e-05,2]
[347709553,1736076642101,-500.0,8.493e-05,2]
[347709554,1736076642111,-500.0,8.493e-05,2]
[347709555,1736076642120,-500.0,8.493e-05,2]
[347709556,1736076642129,-500.0,8.493e-05,2]
[347709557,1736076642140,-500.0,8.493e-05,2]
[347709558,1736076642149,-500.0,8.493e-05,2]
[347709559,1736076642159,-500.0,8.493e-05,2]
[347709560,1736076642168,-1162.18,8.493e-05,2]
[347709561,1736076642178,-500.0,8.493e-05,2]
[347709562,1736076642187,-500.0,8.493e-05,2]
[347709563,1736076642196,-1431.72,8.493e-05,2]
[347709564,1736076642205,-500.0,8.493e-05,2]
[347709565,1736076642215,-500.0,8.493e-05,2]
[347709566,1736076642224,-1706.71,8.493e-05,2]
[347709567,1736076642234,-500.0,8.493e-05,2]
[347709568,1736076642243,-500.0,8.493e-05,2]
[347709569,1736076642252,-500.0,8.493e-05,2]
[347709570,1736076642262,-535.23,8.493e-05,2]
[347709571,1736076642271,-500.0,8.493e-05,2]
[347709572,1736076642280,-500.0,8.493e-05,2]
[347709573,1736076642290,-500.0,8.493e-05,2]
[347709574,1736076642299,-825.63,8.493e-05,2]
[347709575,1736076642309,-704.66,8.493e-05,2]
[347709576,1736076642318,-500.0,8.493e-05,2]
[347709577,1736076642327,-2699.32,8.493e-05,2]
[347709578,1736076642336,-500.0,8.493e-05,2]
[347709579,1736076642346,-602.7,8.493e-05,2]
[347709580,1736076642355,-500.0,8.493e-05,2]
[347709581,1736076642364,-500.0,8.493e-05,2]
[347709582,1736076642374,-500.0,8.493e-05,2]
[347709583,1736076642383,-1673.76,8.493e-05,2]
[347709584,1736076642394,-593.93200393,8.493e-05,2]
[347709585,1736076642404,-872.87,8.493e-05,2]
[347709586,1736076642414,-500.0,8.493e-05,2]
[347709587,1736076642424,-865.52,8.493e-05,2]
[347709588,1736076642433,-500.0,8.493e-05,2]
[347709589,1736076642443,-1352.04,8.493e-05,2]
[347709590,1736076642453,-699.36,8.493e-05,2]
[347709591,1736076642463,-2700.57,8.493e-05,2]
[347709592,1736076642472,-500.0,8.493e-05,2]
[347709593,1736076642482,-500.0,8.493e-05,2]
[347709594,1736076642491,-500.0,8.493e-05,2]
[347709595,1736076642501,-500.0,8.493e-05,2]
[347709596,1736076642514,-500.0,8.493e-05,2]
[347709597,1736076642523,-1106.23,8.493e-05,2]
[347709598,1736076642533,-577.44,8.493e-05,2]
[347709599,1736076642543,-977.55,8.493e-05,2]
[347709600,1736076642554,-520.59,8.493e-05,2]
[347709601,1736076642563,-500.0,8.493e-05,2]
[347709602,1736076642686,-500.0,8.493e-05,2]
[347709603,1736076642695,-500.0,8.493e-05,2]
[347709604,1736076642705,-500.0,8.493e-05,2]
[347709605,1736076642715,-1914.19,8.493e-05,2]
[347709606,1736076642724,-1734.47,8.493e-05,2]
[347709607,1736076642734,-500.0,8.493e-05,2]
[347709609,1736076642743,-600.09,8.493e-05,2]
[347709610,1736076642752,-500.0,8.493e-05,2]
[347709611,1736076642761,-500.0,8.493e-05,2]
[347709612,1736076642771,-876.88,8.493e-05,2]
[347709613,1736076642781,-500.0,8.493e-05,2]
[347709614,1736076642790,-517.2,8.493e-05,2]
[347709615,1736076642799,-500.0,8.493e-05,2]
[347709617,1736076642808,-500.0,8.493e-05,2]
[347709618,1736076642818,-500.0,8.493e-05,2]
[347709619,1736076642827,-865.64,8.493e-05,2]
[347709620,1736076642837,-500.0,8.493e-05,2]
[347709621,1736076642847,-500.0,8.493e-05,2]
[347709622,1736076642857,-500.0,8.493e-05,2]
[347709623,1736076642866,-500.0,8.493e-05,2]
[347709624,1736076642875,-731.69,8.493e-05,2]
[347709625,1736076642885,-500.0,8.493e-05,2]
[347709626,1736076642895,-500.0,8.493e-05,2]
[347709627,1736076642905,-500.0,8.493e-05,2]
[347709628,1736076642915,-500.0,8.493e-05,2]
[347709629,1736076642925,-500.0,8.493e-05,2]
[347709630,1736076642934,-500.0,8.493e-05,2]
[347709631,1736076642944,-500.0,8.493e-05,2]
[347709632,1736076642953,-500.0,8.493e-05,2]
[347709633,1736076642963,-580.28,8.493e-05,2]
[347709634,1736076642972,-529.56,8.493e-05,2]
[347709635,1736076642982,-500.0,8.493e-05,2]
[347709636,1736076642992,-500.0,8.493e-05,2]
[347709637,1736076643001,-500.0,8.493e-05,2]
[347709638,1736076643011,-500.0,8.493e-05,2]